fUST/lending_fUST_20250713
["ID","MTS","AMOUNT","RATE_DAILY","PERIOD"]
[371680896,1752384639561,-561.84778779,0.00017431,2]
[371680898,1752384639575,-318.73459333,0.00017431,2]
[371680900,1752384639585,-460.0,0.00017431,2]
[371680902,1752384639594,-258.10215377,0.00017431,2]
[371681081,1752384640748,-299.42784623,0.00017431,2]
[371681083,1752384640758,-164.85526462,0.00017431,2]
[371681086,1752384640769,-267.26616415,0.00017431,2]
[371681088,1752384640783,-27.87857123,0.00017431,2]
[371681090,1752384640792,-520.82161568,0.00017555,2]
[371681093,1752384640802,-460.0,0.00017555,2]
[371681096,1752384640812,-462.27660395,0.00017555,2]
[371681099,1752384640821,-409.30766088,0.00017555,2]
[371681101,1752384640830,-460.0,0.00017555,2]
[371681104,1752384640840,-460.0,0.00017555,2]
[371681107,1752384640850,-460.0,0.00017555,2]
[371681111,1752384640863,-1052.65,0.00017555,2]
[371681114,1752384640875,-460.0,0.00017555,2]
[371681117,1752384640887,-460.0,0.00017555,2]
[371681124,1752384640911,-460.0,0.00017555,2]
[371681127,1752384640925,-460.0,0.00017555,2]
[371681132,1752384640940,-191.77,0.00017555,2]
[371681135,1752384640952,-571.79,0.00017555,2]
[371681139,1752384640965,-687.87,0.00017555,2]
[371681142,1752384640976,-460.0,0.00017555,2]
[371681145,1752384640987,-460.0,0.00017555,2]
[371681149,1752384641000,-460.0,0.00017555,2]
[371681152,1752384641011,-460.0,0.00017555,2]
[371681156,1752384641023,-460.0,0.00017555,2]
[371681159,1752384641034,-312.0,0.00017555,2]
[371681162,1752384641046,-460.0,0.00017555,2]
[371681166,1752384641058,-460.0,0.00017555,2]
[371681170,1752384641069,-460.0,0.00017555,2]
[371681173,1752384641082,-1177.84,0.00017555,2]
[371681176,1752384641093,-460.0,0.00017555,2]
[371681180,1752384641104,-488.38,0.00017555,2]
[371681184,1752384641117,-460.0,0.00017555,2]
[371681187,1752384641128,-460.0,0.00017555,2]
[371681190,1752384641141,-460.0,0.00017555,2]
[371681193,1752384641152,-460.0,0.00017555,2]
[371681198,1752384641164,-542.86897292,0.00017556,2]
[371681201,1752384641175,-164.299565,0.00017581,2]
[371681204,1752384641187,-460.0,0.00017705,2]
[371681207,1752384641198,-1261.24,0.00017705,2]
[371681212,1752384641210,-460.0,0.00017705,2]
[371681215,1752384641221,-557.53,0.00017705,2]
[371681218,1752384641236,-460.0,0.00017705,2]
[371681221,1752384641248,-164.299565,0.00017759,2]
[371681225,1752384641260,-460.0,0.00017829,2]
[371681229,1752384641272,-500.0,0.00017829,2]
[371681232,1752384641283,-1052.65,0.00017829,2]
[371681236,1752384641296,-460.0,0.00017829,2]
[371681239,1752384641308,-460.0,0.00017829,2]
[371681242,1752384641320,-571.79,0.00017829,2]
[371681245,1752384641332,-687.87,0.00017829,2]
[371681248,1752384641343,-460.0,0.00017829,2]
[371681251,1752384641354,-460.0,0.00017829,2]
[371681255,1752384641364,-460.0,0.00017829,2]
[371681259,1752384641374,-460.0,0.00017829,2]
[371681262,1752384641384,-460.0,0.00017829,2]
[371681265,1752384641396,-489.1,0.00017829,2]
[371681268,1752384641406,-1177.84,0.00017829,2]
[371681271,1752384641417,-460.0,0.00017829,2]
[371681274,1752384641427,-488.38,0.00017829,2]
[371681277,1752384641438,-330.25266142,0.00017829,2]
[371681281,1752384641450,-460.0,0.00017829,2]
[371681284,1752384641461,-460.0,0.00017829,2]
[371681287,1752384641474,-14089.58134951,0.000179,2]
[371681292,1752384641489,-164.299565,0.00017936,2]
[371681295,1752384641501,-460.0,0.00017979,2]
[371681298,1752384641512,-1261.24,0.00017979,2]
[371681301,1752384641525,-460.0,0.00017979,2]
[371681304,1752384641537,-557.53,0.00017979,2]
[371681306,1752384641549,-460.0,0.00017979,2]
[371681308,1752384641561,-460.0,0.00018103,2]
[371681310,1752384641573,-1052.65,0.00018103,2]
[371681312,1752384641586,-460.0,0.00018103,2]
[371681314,1752384641598,-460.0,0.00018103,2]
[371681316,1752384641609,-571.79,0.00018103,2]
[371681319,1752384641619,-687.87,0.00018103,2]
[371681321,1752384641630,-460.0,0.00018103,2]
[371681323,1752384641641,-460.0,0.00018103,2]
[371681325,1752384641652,-460.0,0.00018103,2]
[371681327,1752384641663,-460.0,0.00018103,2]
[371681329,1752384641675,-460.0,0.00018103,2]
[371681331,1752384641687,-1177.84,0.00018103,2]
[371681334,1752384641699,-460.0,0.00018103,2]
[371681336,1752384641712,-488.38,0.00018103,2]
[371681338,1752384641723,-460.0,0.00018103,2]
[371681340,1752384641735,-466.86,0.00018103,2]
[371681343,1752384641750,-164.299565,0.00018114,2]
[371681345,1752384641761,-420.0,0.00018147,2]
[371681347,1752384641771,-725.43,0.00018163,3]
[371681349,1752384641783,-483.61,0.00018165,3]
[371681351,1752384641794,-241.8,0.00018165,3]
[371681353,1752384641805,-500.50835069,0.00018173,2]
[371681356,1752384641818,-500.0,0.00018173,2]
[371681359,1752384641830,-500.0,0.00018175,2]
[371681364,1752384641844,-201.13351356,0.00018175,2]
[371681367,1752384641855,-586.6218509,0.00018175,2]
[371681370,1752384641866,-500.0,0.00018175,2]
[371681373,1752384641876,-500.0,0.00018175,2]
[371681376,1752384641887,-500.0,0.00018175,2]
[371681380,1752384641899,-500.0,0.00018175,2]
[371681383,1752384641909,-500.0,0.00018175,2]
[371681386,1752384641920,-14089.58134939,0.00018176,2]
[371681390,1752384641930,-500.0,0.0001819,2]
[371681393,1752384641943,-462.39412937,0.00018191,2]
[371681396,1752384641954,-460.0,0.00018191,2]
[371681399,1752384641965,-170.87422077,0.00018191,2]
[371681402,1752384641976,-173.67,0.00018191,2]
[371681405,1752384641987,-460.0,0.00018191,2]
[371681410,1752384641998,-500.0,0.00018191,2]
[371681413,1752384642012,-465.50452934,0.00018191,2]
[371681416,1752384642023,-460.0,0.00018191,2]
[371681419,1752384642035,-460.0,0.00018191,2]
[371681423,1752384642048,-460.0,0.00018191,2]
[371681426,1752384642059,-460.0,0.00018191,2]
[371681428,1752384642070,-460.0,0.00018191,2]
[371681430,1752384642081,-467.73022398,0.00018191,2]
[371681432,1752384642092,-460.93439165,0.00018191,2]
[371681435,1752384642104,-339.01707856,0.00018191,2]
[371681437,1752384642115,-462.16292768,0.00018191,2]
[371681439,1752384642127,-460.0,0.00018191,2]
[371681441,1752384642137,-460.0,0.00018191,2]
[371681443,1752384642149,-460.0,0.00018191,2]
[371681446,1752384642160,-460.0,0.00018191,2]
[371681448,1752384642171,-460.0,0.00018191,2]
[371681450,1752384642182,-460.0,0.00018191,2]
[371681452,1752384642193,-186.58256409,0.00018191,2]
[371681454,1752384642204,-449.82524885,0.00018191,2]
[371681456,1752384642214,-462.08102748,0.00018191,2]
[371681458,1752384642225,-460.0,0.00018191,2]
[371681460,1752384642235,-460.0,0.00018191,2]
[371681463,1752384642246,-461.9799767,0.00018191,2]
[371681465,1752384642257,-460.0,0.00018191,2]
[371681467,1752384642268,-460.0,0.00018191,2]
[371681469,1752384642279,-463.42744652,0.00018191,2]
[371681471,1752384642289,-481.24664277,0.00018191,2]
[371681474,1752384642300,-463.35653965,0.00018191,2]
[371681476,1752384642310,-460.0,0.00018191,2]
[371681478,1752384642320,-161.553595,0.00018191,2]
[371681480,1752384642332,-470.58252024,0.00018191,2]
[371681482,1752384642343,-460.0,0.00018191,2]
[371681484,1752384642353,-460.0,0.00018191,2]
[371681487,1752384642364,-460.0,0.00018191,2]
[371681489,1752384642374,-460.0,0.00018191,2]
[371681491,1752384642384,-463.71585953,0.00018191,2]
[371681493,1752384642395,-460.0,0.00018191,2]
[371681495,1752384642405,-200.18986227,0.00018191,2]
[371681497,1752384642415,-460.0,0.00018191,2]
[371681499,1752384642426,-460.0,0.00018191,2]
[371681502,1752384642436,-1157.41,0.00018191,2]
[371681504,1752384642447,-460.0,0.00018191,2]
[371681506,1752384642457,-460.0,0.00018192,2]
[371681508,1752384642469,-460.0,0.00018253,2]
[371681510,1752384642480,-1261.24,0.00018253,2]
[371681513,1752384642491,-460.0,0.00018253,2]
[371681515,1752384642501,-557.53,0.00018253,2]
[371681517,1752384642513,-460.0,0.00018253,2]
[371681519,1752384642523,-164.299565,0.00018291,2]
[371681521,1752384642534,-460.0,0.00018377,2]
[371681523,1752384642545,-500.0,0.00018377,2]
[371681526,1752384642555,-1052.65,0.00018377,2]
[371681528,1752384642566,-460.0,0.00018377,2]
[371681530,1752384642577,-460.0,0.00018377,2]
[371681532,1752384642588,-571.79,0.00018377,2]
[371681554,1752384642770,-687.87,0.00018377,2]
[371681558,1752384642809,-460.0,0.00018377,2]
[371681560,1752384642819,-460.0,0.00018377,2]
[371681562,1752384642831,-460.0,0.00018377,2]
[371681565,1752384642840,-460.0,0.00018377,2]
[371681567,1752384642849,-433.99373962,0.00018377,2]
[371681569,1752384642858,-1177.84,0.00018377,2]
[371681571,1752384642866,-460.0,0.00018377,2]
[371681573,1752384642874,-488.38,0.00018377,2]
[371681575,1752384642882,-14089.58134939,0.00018452,2]
[371681577,1752384642891,-460.0,0.00018465,2]
[371681579,1752384642899,-322.58642972,0.00018465,2]
[371681581,1752384642906,-187.30311076,0.00018465,2]
[371681583,1752384642915,-373.38691427,0.00018465,2]
[371681585,1752384642923,-1157.41,0.00018465,2]
[371681587,1752384642931,-460.0,0.00018465,2]
[371681589,1752384642940,-227.01162962,0.00018466,2]
[371681591,1752384642949,-164.299565,0.00018469,2]
[371681593,1752384642956,-158.07,0.00018512,2]
[371681595,1752384642964,-460.0,0.00018527,2]
[371681597,1752384642971,-1261.24,0.00018527,2]
[371681599,1752384642979,-460.0,0.00018527,2]
[371681601,1752384642986,-557.53,0.00018527,2]
[371681603,1752384642995,-460.0,0.00018527,2]
[371681605,1752384643004,-160.0,0.00018571,2]
[371681607,1752384643011,-164.299565,0.00018647,2]
[371681609,1752384643020,-776.35948408,0.00018647,2]
[371681611,1752384643028,-209.5008958,0.00018651,2]
[371681613,1752384643035,-1052.65,0.00018651,2]
[371681615,1752384643043,-460.0,0.00018651,2]
[371681617,1752384643051,-460.0,0.00018651,2]
[371681619,1752384643059,-571.79,0.00018651,2]
[371681621,1752384643067,-687.87,0.00018651,2]
[371681623,1752384643076,-460.0,0.00018651,2]
[371681625,1752384643085,-460.0,0.00018651,2]
[371681627,1752384643094,-460.0,0.00018651,2]
[371681629,1752384643103,-460.0,0.00018651,2]
[371681631,1752384643112,-1177.84,0.00018651,2]
[371681635,1752384643121,-460.0,0.00018651,2]
[371681637,1752384643131,-488.38,0.00018651,2]
[371681639,1752384643140,-982.11169261,0.00018721,2]
[371681643,1752384643154,-17.88830739,0.00018721,2]
[371681646,1752384643162,-1032.21433711,0.00018727,2]
[371681649,1752384643171,-14089.58134939,0.00018728,2]
[371681651,1752384643177,-179.82875353,0.00018739,2]
[371681653,1752384643186,-1157.41,0.00018739,2]
[371681655,1752384643193,-460.0,0.00018739,2]
[371681656,1752384643201,-460.0,0.00018801,2]
[371681659,1752384643210,-1261.24,0.00018801,2]
[371681661,1752384643219,-460.0,0.00018801,2]
[371681664,1752384643229,-557.53,0.00018801,2]
[371681667,1752384643240,-460.0,0.00018801,2]
[371681670,1752384643249,-164.299565,0.00018824,2]
[371681673,1752384643259,-8240.85155381,0.00018852,2]
[371681675,1752384643269,-207.4,0.00018852,2]
[371681679,1752384643279,-500.0,0.00018899,2]
[371681681,1752384643288,-303.42475521,0.000189,2]
[371681684,1752384643298,-500.0,0.00018923,2]
[371681686,1752384643308,-460.0,0.00018924,2]
[371681688,1752384643317,-460.0,0.00018924,2]
[371681690,1752384643327,-540.68889257,0.00018924,2]
[371681692,1752384643337,-1052.65,0.00018925,2]
[371681694,1752384643345,-460.0,0.00018925,2]
[371681696,1752384643355,-460.0,0.00018925,2]
[371681698,1752384643364,-571.79,0.00018925,2]
[371681699,1752384643374,-687.87,0.00018925,2]
[371681701,1752384643383,-500.84120598,0.00018925,2]
[371681703,1752384643392,-460.0,0.00018925,2]
[371681705,1752384643402,-460.0,0.00018925,2]
[371681707,1752384643411,-460.0,0.00018925,2]
[371681709,1752384643421,-1177.84,0.00018925,2]
[371681711,1752384643430,-460.0,0.00018925,2]
[371681713,1752384643439,-488.38,0.00018925,2]
[371681715,1752384643449,-500.0,0.00019002,2]
[371681717,1752384643458,-500.0,0.00019002,2]
[371681719,1752384643467,-500.0,0.00019002,2]
[371681721,1752384643477,-500.0,0.00019002,2]
[371681723,1752384643487,-163.68418528,0.00019002,2]
[371681725,1752384643496,-500.0,0.00019002,2]
[371681727,1752384643505,-705.13745441,0.00019002,2]
[371681729,1752384643515,-705.13745441,0.00019002,2]
[371681731,1752384643524,-705.13745441,0.00019002,2]
[371681733,1752384643534,-705.13745441,0.00019002,2]
[371681735,1752384643543,-705.13745441,0.00019002,2]
[371681737,1752384643552,-705.13745441,0.00019002,2]
[371681739,1752384643565,-705.13745441,0.00019002,2]
[371681741,1752384643581,-705.13745441,0.00019002,2]
[371681743,1752384643591,-500.0,0.00019002,2]
[371681745,1752384643602,-705.13745441,0.00019002,2]
[371681747,1752384643611,-500.0,0.00019002,2]
[371681750,1752384643623,-705.13745441,0.00019002,2]
[371681753,1752384643633,-705.13745441,0.00019002,2]
[371681756,1752384643643,-705.13745441,0.00019002,2]
[371681757,1752384643652,-500.0,0.00019002,2]
[371681759,1752384643662,-500.0,0.00019002,2]
[371681761,1752384643672,-500.0,0.00019002,2]
[371681763,1752384643682,-705.13745441,0.00019002,2]
[371681765,1752384643692,-500.0,0.00019002,2]
[371681768,1752384643702,-705.13745441,0.00019002,2]
[371681769,1752384643712,-500.0,0.00019002,2]
[371681771,1752384643722,-500.0,0.00019002,2]
[371681774,1752384643732,-705.13745441,0.00019002,2]
[371681776,1752384643747,-705.13745441,0.00019002,2]
[371681778,1752384643757,-705.13745441,0.00019002,2]
[371681780,1752384643767,-705.13745441,0.00019002,2]
[371681782,1752384643778,-164.299565,0.00019002,2]
[371681784,1752384643788,-40285.56170586,0.00019003,2]
[371681787,1752384643803,-3151.80165161,0.00019003,2]
[371681810,1752384644020,-460.0,0.00016609,2]
[371681812,1752384644030,-460.0,0.00016883,2]
[371681814,1752384644039,-460.0,0.00017157,2]
[371681816,1752384644048,-460.0,0.00017431,2]
[371681819,1752384644057,-460.0,0.00017705,2]
[371681821,1752384644067,-460.0,0.00017979,2]
[371681823,1752384644076,-460.0,0.00018253,2]
[371681824,1752384644087,-460.0,0.00018527,2]
[371681825,1752384644096,-4148.63263868,0.00019003,2]
[371682151,1752384786860,184.0,0.00022316,30]
[371682152,1752384787558,184.0,0.00022418,30]
[371682153,1752384793090,380.707545,0.00013699,2]
[371682155,1752384834559,346.99368006,0.0001631,2]
[371682156,1752384834592,4653.00631994,0.0001631,2]
[371682157,1752384850182,1540.23053126,0.0001631,2]
[371682158,1752384864083,193.505591,0.0001612,2]
[371682159,1752384878360,184.0,0.00022159,30]
[371682160,1752384878892,184.0,0.00022279,30]
[371682161,1752384880469,1680.50792032,0.0001631,2]
[371682162,1752384907990,184.0,0.00022181,30]
[371682163,1752385055073,177.64574392,0.00016111,2]
[371682164,1752385063223,197.1032735,0.00015762,2]
[371682165,1752385101843,49805.86121277,0.00024,60]
[371682167,1752385225856,747.680847,0.00015804,2]
[371682168,1752385330383,810.31977306,0.00015615,2]
[371682169,1752385330413,2478.46246974,0.00015615,2]
[371682170,1752385341969,3319.49207968,0.0001631,2]
[371682171,1752385367095,196.21,0.00021604,30]
[371682172,1752385368260,196.21,0.00021669,30]
[371682173,1752385368682,196.21,0.00021735,30]
[371682273,1752385831876,-473.16,0.00016598,3]
[371682275,1752385831887,-236.58,0.00016598,3]
[371682277,1752385831896,-300.0,0.00016604,2]
[371682279,1752385831910,-300.0,0.00016604,2]
[371682281,1752385831920,-1200.0,0.00016604,2]
[371682283,1752385831929,-1200.0,0.00016605,2]
[371682285,1752385831940,-460.0,0.00016605,2]
[371682287,1752385831949,-460.0,0.00016605,2]
[371682289,1752385831959,-460.0,0.00016605,2]
[371682291,1752385831969,-505.50893237,0.00016605,2]
[371682294,1752385831978,-460.0,0.00016605,2]
[371682296,1752385831988,-460.0,0.00016605,2]
[371682298,1752385831997,-460.0,0.00016605,2]
[371682300,1752385832007,-460.0,0.00016605,2]
[371682302,1752385832016,-460.0,0.00016605,2]
[371682304,1752385832025,-460.0,0.00016605,2]
[371682306,1752385832034,-460.0,0.00016605,2]
[371682308,1752385832044,-460.0,0.00016605,2]
[371682310,1752385832054,-460.86225455,0.00016605,2]
[371682312,1752385832063,-460.0,0.00016605,2]
[371682314,1752385832072,-1022.4,0.00016605,2]
[371682316,1752385832082,-463.16853558,0.00016605,2]
[371682318,1752385832091,-1394.75,0.00016605,2]
[371682320,1752385832100,-460.0,0.00016605,2]
[371682322,1752385832109,-460.0,0.00016605,2]
[371682324,1752385832119,-460.0,0.00016605,2]
[371682326,1752385832128,-460.0,0.00016605,2]
[371682328,1752385832138,-460.0,0.00016605,2]
[371682330,1752385832148,-460.0,0.00016605,2]
[371682332,1752385832162,-460.0,0.00016605,2]
[371682334,1752385832171,-460.0,0.00016605,2]
[371682336,1752385832181,-806.82,0.00016605,2]
[371682338,1752385832191,-481.89,0.00016605,2]
[371682340,1752385832201,-497.02887072,0.00016605,2]
[371682342,1752385832210,-460.0,0.00016605,2]
[371682344,1752385832220,-460.0,0.00016605,2]
[371682346,1752385832231,-460.0,0.00016605,2]
[371682348,1752385832241,-460.0,0.00016605,2]
[371682350,1752385832250,-494.98226552,0.00016605,2]
[371682352,1752385832260,-460.0,0.00016605,2]
[371682354,1752385832269,-460.0,0.00016605,2]
[371682356,1752385832279,-460.0,0.00016605,2]
[371682358,1752385832289,-460.0,0.00016605,2]
[371682360,1752385832299,-460.0,0.00016605,2]
[371682362,1752385832309,-460.0,0.00016606,2]
[371682364,1752385832319,-573.3082617,0.00016606,2]
[371682366,1752385832328,-460.0,0.00016606,2]
[371682368,1752385832337,-460.0,0.00016606,2]
[371682370,1752385832348,-490.39634865,0.00016606,2]
[371682372,1752385832357,-460.0,0.00016606,2]
[371682374,1752385832366,-460.0,0.00016606,2]
[371682376,1752385832376,-460.0,0.00016606,2]
[371682378,1752385832385,-460.0,0.00016606,2]
[371682380,1752385832395,-460.0,0.00016606,2]
[371682382,1752385832405,-460.0,0.00016606,2]
[371682384,1752385832414,-460.0,0.00016606,2]
[371682386,1752385832423,-460.0,0.00016606,2]
[371682388,1752385832433,-460.0,0.00016606,2]
[371682390,1752385832442,-461.4521134,0.00016606,2]
[371682392,1752385832452,-460.0,0.00016606,2]
[371682394,1752385832461,-460.0,0.00016606,2]
[371682396,1752385832470,-460.0,0.00016606,2]
[371682398,1752385832480,-460.0,0.00016606,2]
[371682401,1752385832490,-461.67280097,0.00016606,2]
[371682404,1752385832499,-460.0,0.00016606,2]
[371682406,1752385832509,-460.0,0.00016606,2]
[371682408,1752385832519,-465.5359837,0.00016606,2]
[371682410,1752385832529,-460.0,0.00016606,2]
[371682412,1752385832539,-460.0,0.00016606,2]
[371682414,1752385832548,-462.98137432,0.00016606,2]
[371682416,1752385832558,-460.0,0.00016606,2]
[371682418,1752385832568,-460.0,0.00016606,2]
[371682420,1752385832577,-460.0,0.00016606,2]
[371682422,1752385832587,-460.0,0.00016606,2]
[371682424,1752385832596,-460.0,0.00016606,2]
[371682426,1752385832605,-460.0,0.00016606,2]
[371682428,1752385832615,-460.0,0.00016606,2]
[371682430,1752385832624,-460.0,0.00016606,2]
[371682432,1752385832633,-500.0,0.00016606,2]
[371682434,1752385832643,-465.92672398,0.00016606,2]
[371682436,1752385832654,-460.0,0.00016606,2]
[371682438,1752385832663,-460.0,0.00016606,2]
[371682440,1752385832673,-473.44425675,0.00016606,2]
[371682442,1752385832682,-460.0,0.00016606,2]
[371682443,1752385832692,-460.0,0.00016606,2]
[371682444,1752385832701,-460.0,0.00016606,2]
[371682445,1752385832711,-467.1678357,0.00016606,2]
[371682446,1752385832720,-460.0,0.00016606,2]
[371682447,1752385832729,-460.0,0.00016606,2]
[371682448,1752385832739,-460.0,0.00016606,2]
[371682449,1752385832748,-462.14775319,0.00016606,2]
[371682451,1752385832758,-461.80732137,0.00016606,2]
[371682453,1752385832767,-460.0,0.00016606,2]
[371682455,1752385832776,-460.0,0.00016606,2]
[371682457,1752385832786,-460.0,0.00016606,2]
[371682459,1752385832795,-533.10150346,0.00016606,2]
[371682461,1752385832804,-460.0,0.00016606,2]
[371682463,1752385832814,-460.0,0.00016606,2]
[371682466,1752385832823,-460.0,0.00016606,2]
[371682468,1752385832833,-460.0,0.00016606,2]
[371682470,1752385832842,-460.0,0.00016606,2]
[371682471,1752385832851,-460.0,0.00016606,2]
[371682473,1752385832860,-460.0,0.00016606,2]
[371682475,1752385832870,-460.0,0.00016606,2]
[371682477,1752385832879,-460.0,0.00016606,2]
[371682480,1752385832889,-237.07492919,0.00016606,2]
[371682482,1752385832899,-460.0,0.00016606,2]
[371682484,1752385832911,-314.65072694,0.00016606,2]
[371682486,1752385832920,-460.0,0.00016606,2]
[371682488,1752385832930,-460.0,0.00016606,2]
[371682490,1752385832939,-460.0,0.00016606,2]
[371682492,1752385832948,-460.0,0.00016606,2]
[371682494,1752385832957,-460.0,0.00016606,2]
[371682496,1752385832967,-460.0,0.00016606,2]
[371682497,1752385832976,-460.0,0.00016606,2]
[371682500,1752385832986,-460.0,0.00016606,2]
[371682501,1752385832996,-460.0,0.00016606,2]
[371682504,1752385833006,-460.0,0.00016606,2]
[371682505,1752385833015,-460.0,0.00016606,2]
[371682507,1752385833025,-461.34721505,0.00016606,2]
[371682509,1752385833035,-460.0,0.00016606,2]
[371682511,1752385833045,-460.0,0.00016606,2]
[371682514,1752385833056,-460.0,0.00016606,2]
[371682516,1752385833066,-460.0,0.00016606,2]
[371682518,1752385833076,-460.0,0.00016606,2]
[371682520,1752385833086,-460.0,0.00016606,2]
[371682522,1752385833096,-460.0,0.00016606,2]
[371682524,1752385833106,-464.06036161,0.00016606,2]
[371682526,1752385833116,-460.0,0.00016606,2]
[371682527,1752385833125,-460.0,0.00016606,2]
[371682530,1752385833135,-369.78223121,0.00016606,2]
[371682532,1752385833145,-460.0,0.00016606,2]
[371682534,1752385833160,-460.0,0.00016606,2]
[371682536,1752385833170,-460.0,0.00016606,2]
[371682538,1752385833180,-460.0,0.00016606,2]
[371682540,1752385833191,-460.0,0.00016606,2]
[371682542,1752385833200,-460.0,0.00016606,2]
[371682559,1752385833357,-464.88111588,0.00016607,2]
[371682562,1752385833367,-460.0,0.00016607,2]
[371682563,1752385833377,-460.0,0.00016607,2]
[371682566,1752385833386,-460.0,0.00016607,2]
[371682568,1752385833395,-273.02493693,0.00016607,2]
[371682570,1752385833405,-460.0,0.00016607,2]
[371682571,1752385833415,-462.71793884,0.00016607,2]
[371682573,1752385833424,-488.00398843,0.00016607,2]
[371682574,1752385833433,-273.21416359,0.00016607,2]
[371682575,1752385833443,-238.51968945,0.00016607,2]
[371682576,1752385833452,-460.0,0.00016607,2]
[371682577,1752385833461,-460.0,0.00016607,2]
[371682578,1752385833470,-460.0,0.00016607,2]
[371682579,1752385833479,-460.0,0.00016607,2]
[371682580,1752385833489,-462.43621757,0.00016607,2]
[371682581,1752385833498,-460.0,0.00016607,2]
[371682582,1752385833507,-460.0,0.00016607,2]
[371682583,1752385833516,-460.0,0.00016607,2]
[371682584,1752385833525,-434.85931435,0.00016607,2]
[371682585,1752385833534,-460.0,0.00016607,2]
[371682586,1752385833544,-460.0,0.00016607,2]
[371682587,1752385833553,-460.0,0.00016607,2]
[371682588,1752385833562,-460.0,0.00016607,2]
[371682589,1752385833571,-462.35716031,0.00016607,2]
[371682590,1752385833580,-161.57364911,0.00016607,2]
[371682591,1752385833589,-460.0,0.00016607,2]
[371682592,1752385833598,-460.0,0.00016607,2]
[371682593,1752385833607,-460.0,0.00016607,2]
[371682594,1752385833616,-461.51613783,0.00016607,2]
[371682595,1752385833625,-460.0,0.00016607,2]
[371682596,1752385833634,-460.0,0.00016607,2]
[371682597,1752385833643,-460.0,0.00016607,2]
[371682598,1752385833652,-460.0,0.00016607,2]
[371682599,1752385833663,-460.0,0.00016607,2]
[371682600,1752385833672,-460.0,0.00016607,2]
[371682601,1752385833682,-512.44,0.00016607,2]
[371682602,1752385833691,-460.0,0.00016607,2]
[371682603,1752385833701,-460.0,0.00016607,2]
[371682604,1752385833711,-460.0,0.00016607,2]
[371682605,1752385833720,-460.0,0.00016607,2]
[371682606,1752385833730,-460.0,0.00016607,2]
[371682607,1752385833739,-460.0,0.00016607,2]
[371682608,1752385833749,-460.0,0.00016607,2]
[371682609,1752385833758,-460.71634509,0.00016607,2]
[371682610,1752385833768,-460.0,0.00016607,2]
[371682611,1752385833777,-460.0,0.00016607,2]
[371682612,1752385833787,-460.0,0.00016607,2]
[371682613,1752385833796,-460.0,0.00016607,2]
[371682614,1752385833806,-460.0,0.00016607,2]
[371682615,1752385833815,-460.0,0.00016607,2]
[371682616,1752385833824,-460.0,0.00016607,2]
[371682617,1752385833834,-460.0,0.00016607,2]
[371682618,1752385833844,-460.0,0.00016607,2]
[371682619,1752385833853,-460.0,0.00016607,2]
[371682620,1752385833862,-460.0,0.00016607,2]
[371682621,1752385833872,-460.0,0.00016607,2]
[371682622,1752385833882,-460.0,0.00016607,2]
[371682623,1752385833892,-460.0,0.00016607,2]
[371682624,1752385833901,-463.09209092,0.00016607,2]